Cogmind - Beta 13 @@@ ROGUE MODE // 2024.05.27 @ 10:54:30 Player: Bace Troncons Result: Destroyed by Piercing Trap Performance ------------- Evolutions (0) 0 Regions Visited (2) 400 Robots Destroyed (26) 130 Value Destroyed (701) 701 Prototype IDs (0) 0 Alien Tech Used (0) 0 Bonus (0) 0 TOTAL SCORE: 1231 Bonus ------- None Cogmind --------- Core Integrity 0/250 Matter 123/300 Energy 96/100 System Corruption 0% Temperature Cool (2) Movement Treading (160) Location -10/Subcaves Parts ------- > --- POWER (1) -------- (None) > --- PROPULSION (2) --- Improved Treads Improved Treads > --- UTILITY (2) ------ Scrap Shield > --- WEAPON (2) ------- Battle Rifle > --- INVENTORY (5) ---- Ion Engine Authchip [Propulsion] Authchip [Propulsion] Authchip [Propulsion] Grenade Launcher Peak State ------------ > --- POWER ------------ (None) > --- PROPULSION ------- Improved Treads Improved Treads > --- UTILITY ---------- Scrap Shield > --- WEAPON ----------- Battle Rifle Subdweller Machine Gun > --- INVENTORY -------- Ion Engine Authchip [Propulsion] Authchip [Propulsion] Authchip [Propulsion] Grenade Launcher [Rating: 13] Favorites ----------- Power Ion Engine Engine Ion Engine Propulsion Improved Treads Treads Improved Treads Utility Small Storage Unit Storage Small Storage Unit Processor Transport Network Coupler Protection Propulsion Shielding Weapon Assault Rifle Energy Gun Medium Laser Ballistic Gun Assault Rifle Launcher Grenade Launcher Build | -11 -10 -10 ------- Run | Yrd Mat Sub Slots Evolved . | . . . Power . | . . . Propulsion . | . . . Utility . | . . . Weapon . | . . . Parts Attached 27 | 6 12 9 Power 1 | 1 . . Engine 1 | 1 . . Core . | . . . Reactor . | . . . Propulsion 8 | 2 4 2 Treads 8 | 2 4 2 Leg . | . . . Wheel . | . . . Hover . | . . . Flight . | . . . Utility 7 | 1 5 1 Device . | . . . Storage 2 | 1 1 . Processor 2 | . 2 . Hackware . | . . . Protection 3 | . 2 1 Artifact . | . . . Weapon 11 | 2 3 6 Energy Gun 2 | 2 . . Energy Cannon . | . . . Ballistic Gun 7 | . 3 4 Ballistic Cannon . | . . . Launcher 2 | . . 2 Special Weapon . | . . . Impact Weapon . | . . . Slashing Weapon . | . . . Piercing Weapon . | . . . Special Melee Weapon . | . . . Unidentified Prototypes . | . . . Parts Lost 5 | . 1 4 Power 1 | . . 1 Propulsion . | . . . Utility 1 | . . 1 Weapon 3 | . 1 2 Highest Loss Streak 3 | . 1 3 To Critical Strikes . | . . . Average Slot Usage (%) 92 | . 97 78 Engine 11 | . 14 5 Treads 27 | . 27 28 Storage 12 | . 14 8 Processor 3 | . 4 . Protection 8 | . 8 10 Energy Gun 8 | . 11 . Ballistic Gun 17 | . 16 22 Naked Turns . | . . . Heaviest Build 31 | 14 30 31 Greatest Support 46 | 40 46 46 Greatest Overweight (x) 1 | 1 . . Average Overweight (x) . | . . . Largest Inventory Capacity 15 | 8 15 15 Average Capacity 10 | 5 10 11 Most Carried 8 | 4 8 8 Average Carried 6 | 2 6 6 Final Capacity 15 | 8 15 5 Final Carried 8 | 3 8 5 Class Distribution -------------------- 100% | Mutant Dominant Class ---------------- Mutant | -10/Materials Mutant | -10/Subcaves Resources | -11 -10 -10 ----------- Run | Yrd Mat Sub Matter Collected 666 | 205 285 176 Remotely . | . . . Salvage Created 909 | . 733 176 Parts 51 | . 41 10 Haulers Intercepted 1 | . 1 . Recyclers Shooed . | . . . Parts Field Recycled . | . . . Retrieved Matter . | . . . Parts Self-Destructed . | . . . Prevented . | . . . Kills | -11 -10 -10 ------- Run | Yrd Mat Sub Combat Hostiles Destroyed 22 | . 18 4 Guns 21 | . 17 4 AOE 1 | . 1 . Classes Destroyed 6 | . 5 1 Hauler 1 | . 1 . Operator 1 | . 1 . Watcher 2 | . 2 . Swarmer 6 | . 6 . Grunt 12 | . 12 . Subdweller 4 | . . 4 Best Kill Streak 4 | . 4 1 Combat Bots Only 4 | . 4 1 Max Kills in Single Turn 1 | . 1 1 Gunslinging . | . . . Exploded 1 | . 1 . Melee . | . . . Uniques/NPCs Destroyed . | . . . Combat | -11 -10 -10 -------- Run | Yrd Mat Sub Hostile Shots Fired 135 | . 81 54 Missed 28 | . 15 13 Damage Taken 1592 | . 719 873 Core 255 | . 125 130 Absorbed by Shields . | . . . Redirected to Shielding 52 | . 19 33 Regen/Repaired (Parts) 173 | . 173 . Core Remaining (%) 100 | 100 . . Volleys Fired 111 | . 64 47 Largest 2 | . 2 2 Hottest 90 | . 90 55 Shots Fired 212 | . 123 89 Gun 208 | . 123 85 Cannon . | . . . Launcher 4 | . . 4 Special . | . . . Kinetic 132 | . 47 85 Thermal 46 | . 46 . Explosive 4 | . . 4 Electromagnetic 30 | . 30 . Robot Hit Streak 16 | . 16 15 Robot Miss Streak 4 | . 4 2 Penetration Max . | . . . Secondary Targets 2 | . 1 1 Max Gunslinging Chain 1 | . 1 1 Shots Hit Robots 127 | . 75 52 Core Hits 44 | . 34 10 Critical Kills . | . . . Critical Parts Destroyed . | . . . Critical Strikes 5 | . 5 . Burn 5 | . 5 . Melee Attacks . | . . . Impact . | . . . Slashing . | . . . Piercing . | . . . Sneak Attacks . | . . . Combat Hostiles . | . . . Follow-up Attacks . | . . . Damage Inflicted 1703 | . 1000 703 Guns 1628 | . 977 651 Cannons . | . . . Explosions 75 | . 23 52 Melee . | . . . Ramming . | . . . Kinetic 980 | . 329 651 Thermal 373 | . 373 . Explosive 52 | . . 52 Electromagnetic 298 | . 298 . Impact . | . . . Slashing . | . . . Piercing . | . . . Highest Corruption . | . . . Average Corruption . | . . . Corruption Purged . | . . . Corruption Blocked . | . . . Overload Shots . | . . . Overflow Damage . | . . . Projectiles . | . . . Explosions . | . . . Melee . | . . . Knockbacks . | . . . Impact . | . . . Kinetic . | . . . Secondary . | . . . Self-Inflicted Damage 48 | . 38 10 Shots 2 | . 1 1 Rammed . | . . . Targets Rammed . | . . . Kicked . | . . . Crushed . | . . . Highest Temperature 308 | . 308 . Average Temperature 86 | . 86 . Received Heat Transfer 288 | . 264 24 Siege Activations . | . . . Robots Corrupted . | . . . Combat Hostiles . | . . . Parts Fried . | . . . Impact Corruptions . | . . . Robots Melted . | . . . Combat Hostiles . | . . . Parts Melted 3 | . 3 . Heat Transferred 1456 | . 1456 . Parts Sabotaged . | . . . Parts Stolen . | . . . Parts Stripped . | . . . Power Chain Reactions 1 | . 1 . Alert | -11 -10 -10 ------- Run | Yrd Mat Sub Peak Influence 296 | . 296 . Initial . | . . . Average 73 | . 76 . Maximum Alert Level 1 | . 1 . Low Security (%) 95 | 100 95 . Level 1 4 | . 4 . Level 2 . | . . . Level 3 . | . . . Level 4 . | . . . Level 5 . | . . . High Security . | . . . Max Security . | . . . Squads Dispatched 5 | . 5 . Investigation 2 | . 2 . Extermination . | . . . Reinforcement 3 | . 3 . Assault . | . . . Garrison . | . . . Intercept . | . . . Searches Triggered . | . . . Construction Impeded . | . . . Haulers Reinforced . | . . . Active Scanning Responses . | . . . Cargo Convoy Interrupts . | . . . Stealth | -11 -10 -10 --------- Run | Yrd Mat Sub Distress Signals 2 | . 2 . Communications Jammed . | . . . Distress Signals . | . . . Times Spotted 34 | . 30 4 Peak Tracking Total 4 | . 4 2 Tactical Retreats . | . . . Traps | -11 -10 -10 ------- Run | Yrd Mat Sub Traps Triggered 3 | . 2 1 Indirectly . | . . . Trap Hack Attempts . | . . . Triggered . | . . . Disarmed . | . . . Reprogrammed . | . . . Reused . | . . . Traps Extracted . | . . . Installed . | . . . Triggered . | . . . Machines | -11 -10 -10 ---------- Run | Yrd Mat Sub Machines Disabled 1 | . 1 . Max in Single Turn 1 | . 1 . Machines Repaired . | . . . Machines Dismantled . | . . . Machines Sabotaged . | . . . Overloaded Fab Kills . | . . . Hacking | -11 -10 -10 --------- Run | Yrd Mat Sub Machines Accessed 6 | . 6 . Terminals 4 | . 4 . Fabricators . | . . . Repair Stations 1 | . 1 . Recycling Units 1 | . 1 . Scanalyzers . | . . . Garrison Access . | . . . Total Hacks 14 | . 14 . Successful 7 | . 7 . Failed 7 | . 7 . Catastrophic 2 | . 2 . Database Lockouts . | . . . Manual 4 | . 4 . Terminals 6 | . 6 . Fabricators . | . . . Repair Stations 6 | . 6 . Recycling Units 2 | . 2 . Scanalyzers . | . . . Garrison Access . | . . . Terminal Hacks 2 | . 2 . Unreport Threat 1 | . 1 . Hauler Manifests 1 | . 1 . Fabricator Hacks . | . . . Repair Station Hacks 4 | . 4 . Scan Component 2 | . 2 . Repair 2 | . 2 . Recycling Unit Hacks 1 | . 1 . Retrieve Components 1 | . 1 . Scanalyzer . | . . . Garrison Access Hacks . | . . . Unauthorized Hacks . | . . . Terminals . | . . . Fabricators . | . . . Repair Stations . | . . . Recycling Units . | . . . Scanalyzers . | . . . Garrison Access . | . . . Data Cores Recovered . | . . . Used . | . . . Hacking Detections 4 | . 4 . Full Trace Events 1 | . 1 . Feedback Events . | . . . Feedback Blocked . | . . . Robot Schematics Acquired . | . . . Robots Built . | . . . Authchips . | . . . Time . | . . . Total Robot Build Rating . | . . . Part Schematics Acquired . | . . . Parts Built . | . . . Authchips . | . . . Time . | . . . Total Part Build Rating . | . . . Parts Repaired 2 | . 2 . Time 52 | . 52 . Parts Recycled . | . . . Recycled Matter . | . . . Retrieved Matter . | . . . Retrieved Components 2 | . 2 . Parts Scanalyzed . | . . . Part Schematics Acquired . | . . . Parts Damaged . | . . . Bothacking | -11 -10 -10 ------------ Run | Yrd Mat Sub Used RIF Installer . | . . . Robots Hacked . | . . . Non-combat . | . . . Combat . | . . . Robot Hacks Applied . | . . . Relay Couplers Released . | . . . Fabnet Peak Effective % . | . . . Robots Rewired . | . . . Allies Hacked . | . . . Hacks Repelled . | . . . Allies | -11 -10 -10 -------- Run | Yrd Mat Sub Total Allies . | . . . Largest Group . | . . . Highest-Rated Group . | . . . Highest-Rated Ally . | . . . Total Orders . | . . . Ally Attacks . | . . . Total Damage . | . . . Kills . | . . . Allies Corrupted . | . . . Allies Melted . | . . . Intel | -11 -10 -10 ------- Run | Yrd Mat Sub Robot Analysis Total . | . . . Derelict Logs Recovered 2 | . . 2 Drone Launches . | . . . Drone Recoveries . | . . . Exploration | -11 -10 -10 ------------- Run | Yrd Mat Sub Turns Passed 2466 | 82 1819 565 Spaces Moved 885 | 46 595 244 Core 4 | 4 . . Treads 881 | 42 595 244 Legs . | . . . Wheels . | . . . Hover . | . . . Flight . | . . . Fastest Speed 50 | 50 160 160 Average Speed 159 | 152 160 160 Slowest Speed 160 | 160 160 160 Overloaded Moves . | . . . Propulsion Burnouts . | . . . Robots Hopped . | . . . Cave-ins Triggered . | . . . Exploration Rate (%) 36 | 3 89 18 Regions Visited 2 Branch Regions 1 Pre-discovered Areas . | . . . Known Exits Taken . | . . . Unknown Exits Taken 2 | 1 1 . Scrap Searched . | . . . Spaces Dug 11 | . . 11 Terrain Destroyed 30 | . 2 28 Melee . | . . . Projectile . | . . . AOE 30 | . 2 28 Terrain Rammed . | . . . Walls Destroyed . | . . . Machines Disabled . | . . . Actions | -11 -10 -10 --------- Run | Yrd Mat Sub Total 1733 | 55 1347 331 Wait 675 | . 653 22 Move 883 | 45 594 244 Hop . | . . . Pick Up 16 | 4 10 2 Fast Attach 16 | 5 8 3 Attach 1 | 1 . . Detach 3 | . 3 . Swap 10 | . 4 6 Drop 15 | . 11 4 Fire 111 | . 64 47 Melee . | . . . Ram . | . . . Kick . | . . . Crush . | . . . Escape Stasis . | . . . Rewire . | . . . Trap . | . . . Miscellaneous 3 | . . 3 Route ------- -11/Scrapyard -10/Materials (discovered 6 exits: [*Mat x3] / [*Min x2] / [*Sub]) -10/Subcaves (discovered 2 exits: [*Mat] / Rec) History --------- Turn | Location | Event 46 | -11/Scrapyard | Discovered new exit (range 16) 83 | -11/Scrapyard | Entered Materials 308 | -10/Materials | Build established: Mutant 467 | -10/Materials | Discovered new exit (range 10) 659 | -10/Materials | Discovered new exit (range 15) 698 | -10/Materials | Repaired Lgt. Treads 725 | -10/Materials | Repaired Lgt. Treads 807 | -10/Materials | Discovered new exit (range 11) 1130 | -10/Materials | Discovered new exit (range 6) 1457 | -10/Materials | Discovered new exit (range 7) 1772 | -10/Materials | Discovered new exit (range 6) 1902 | -10/Materials | Entered Subcaves 1923 | -10/Subcaves | Learned location of 1 exit from Materials 1928 | -10/Subcaves | Identified exit to Recycling 1960 | -10/Subcaves | Discovered new exit (range 12) 2021 | -10/Subcaves | Core integrity fell below 50% 2144 | -10/Subcaves | Lost 3 parts (1p1u1w) 2148 | -10/Subcaves | Shifting Twisted Machinery released Battle Rifle 2241 | -10/Subcaves | Core integrity fell below 20% 2467 | -10/Subcaves | Destroyed by Piercing Trap Last Messages --------------- Shield (+49). 02273_ The unstable cave ceiling collapses. 02273_ Scrap Shield Fragment affixed to Scrap Shield (+47). 02276_ Dropped Assault Rifle. 02276_ Acquired Sub. Machine Gun. 02353_ R9-HQU(R) destroyed. 02353_ Switching to secondary target: T4-61X(R). 02364_ T4-61X(R) affixes Scrap Shield Fragment to Scrap Shield. 02376_ Destroyed Scrap Shield. 02377_ Sub. Machine Gun destroyed. 02383_ T4-61X(R) destroyed. 02385_ Acquired 46 matter. 02386_ Acquired 38 matter. 02389_ Scrap Shield Fragment affixed to Scrap Shield (+46). 02467_ Triggered Piercing Trap. 02467_ Spikes shoot up from the floor. 02467_ Critical hit (Impale). Map ----- +----------------------------------------------------+ | ????????????# # # ""##????????????????? | | ???????????# ##### #????????????????? | | ???????????## ##???# ###???????????????? | | ????????????## ###????# ##??????????????? | | ?????????????#######??????## #??????????????? | | ???????????????????????????# ##??????????????? | | ???????????????????????????## ##??????????????? | | ???????????????????????????## #??????????????? | | ???????????????????????????# #??????????????? | | ???????????????????????????# ##??????????????? | | ???????????????????????????## #???????????????? | | ????????????????????????????# ##??????????????? | | ????????????????????????????# #??????????????? | | ????????????????????????????# #??????????????? | | ????????????????????????????## ##??????????????? | | ????????????????????????????# #??????????????? | | ????????????????????????????# #??????????????? | | ????????????????????????????# #??????????????? | | ???????????????????###??????# #??????????????? | | ??????????????????## #####?# #??????????????? | | ?????????????????## #### ##??????????????? | | ????????????????## ### #???????????????? | | ???????????????## ?# ##??????????????? | | ???????????# ## ### #??????????????? | | ???????????# ## #??????????????? | | ?????????? @ ##??????????????? | | ???????????????# ## ### #??????????????? | | ?????????????????????# ##??## ##??????????????? | | ?????????????????????#??????## #???????????????? | | ?????????????????????????????# #??????????????? | | ????????????????????????????? #?????????????? | | ?????????????????????????????### #????????????? | | ????????????????????????????????# #????????????? | | ???????????????????????>????????? #????????????? | | ??????????????????????????????????#????????????? | | ???????????????????????????????????????????????? | | ???????????????????????????????????????????????? | | ???????????????????????????????????????????????? | | ???????????????????????????????????????????????? | | ???????????????????????????????????????????????? | | ???????????????????????????????????????????????? | | ???????????????????????????????????????????????? | | ???????????????????????????????????????????????? | | ???????????????????????????????????????????????? | | ???????????????????????????????????????????????? | | ???????????????????????????????????????????????? | | ???????????????????????????????????????????????? | | ???????????????????????????????????????????????? | | ???????????????????????????????????????????????? | | ???????????????????????????????????????????????? | +----------------------------------------------------+ Best States ------------- Heat Dissipation 25 Energy Generation 10 Energy Capacity 250 Matter Stores 300 Matter Capacity 300 Sight Range 18 Terrain Scan Density 10 Armor Coverage 800 Propulsion Shielding 33 Evasion (%) 40 Recoil Reduction 2 Authchip Count 4 Item Schematics ----------------- None Robot Schematics ------------------ None Fabricated ------------ Nothing Alien Tech Used ----------------- None Achievements -------------- None Challenges ------------ None Game ------ Seed RefineryThermoelectricTreads Manual? 0 Play Time 00:16:54 Cumulative 87.1 hours Start 2024.05.27 @ 10:41:26 End 2024.05.27 @ 10:54:30 Sessions 1 Manual Loads 0 Difficulty Rogue Special Mode None Game No. 143 Rogue 143 Adventurer 0 Explorer 0 Win Type - Total 1 Types 1/0/0/0/0/0/0/0/0 Lore% 40 Gallery% 44 Achievement% 32 Wizard Run 0 Options --------- Layout 1 ASCII 0 Keyboard 1 Movement Numpad Keybinds 0 Fullscreen 1 Font 24/Smallcaps Map View 50x35 Zoom Use 0% Tactical HUD 1 Map Filters NONE Filters NONE Steam 1 RUN: b170366f-2f36-4dce-8783-ed808bff88ab